[Event "OGD Prinsenstad-toernooi - A groep"]
[Site "Delft"]
[Date "2013.03.31"]
[Round "6.7"]
[White "Van Dijk, Harold"]
[Black "Thakoerdien, Jerrel"]
[Result "1-0"]
[ECO "B01"]
[WhiteElo "2331"]
[BlackElo "2037"]
[PlyCount "73"]
[EventDate "2013.03.29"]
[EventType "swiss"]
[EventRounds "6"]
[EventCountry "NED"]
[Source "DSC"]
[SourceDate "2013.02.04"]
[TimeControl "6000+10"]

1. e4 {[%emt 0:00:00]} d5 {[%emt 0:00:04]} 2. exd5 {[%emt 0:00:09]} Nf6 {
[%emt 0:00:05]} 3. Nf3 {[%emt 0:00:30]} Nxd5 {[%emt 0:00:11]} 4. d4 {
[%emt 0:00:27]} g6 {[%emt 0:00:20]} 5. Be2 {[%emt 0:00:17]} Bg7 {[%emt 0:00:19]
} 6. O-O {[%emt 0:01:42]} O-O {[%emt 0:00:06]} 7. c4 {[%emt 0:02:10]} Nb6 {
[%emt 0:00:07]} 8. h3 {[%emt 0:00:55]} Nc6 {[%emt 0:00:33]} 9. c5 {
[%emt 0:03:27]} Nd5 {[%emt 0:01:01]} 10. Nc3 {[%emt 0:00:11]} h6 {
[%emt 0:07:34]} 11. Qb3 {[%emt 0:06:45]} Be6 {[%emt 0:09:25]} 12. Qxb7 {
[%emt 0:02:00]} Ncb4 {[%emt 0:31:50]} 13. Nxd5 {[%emt 0:04:29]} Nxd5 {
[%emt 0:00:09]} 14. a3 {[%emt 0:06:56]} Kh7 {[%emt 0:04:21]} 15. Ne5 {
[%emt 0:05:34]} f5 {[%emt 0:10:13]} 16. Nc6 {[%emt 0:06:23]} Qe8 {
[%emt 0:04:10]} 17. Bc4 {[%emt 0:03:52]} Qf7 {[%emt 0:09:53]} 18. Re1 {
[%emt 0:01:36]} Rae8 {[%emt 0:01:38]} 19. Qb3 {[%emt 0:01:24]} f4 {
[%emt 0:02:28]} 20. Qf3 {[%emt 0:07:20]} Qf5 {[%emt 0:05:14]} 21. Rxe6 {
[%emt 0:01:09]} Qxe6 {[%emt 0:00:13]} 22. Bxd5 {[%emt 0:00:25]} Qe1+ {
[%emt 0:00:18]} 23. Kh2 {[%emt 0:00:08]} e5 {[%emt 0:00:34]} 24. dxe5 {
[%emt 0:02:12]} Bxe5 {[%emt 0:00:32]} 25. Nxe5 {[%emt 0:01:51]} Rxe5 {
[%emt 0:00:10]} 26. Bc4 {[%emt 0:04:53]} Qe4 {[%emt 0:05:12]} 27. Qxe4 {
[%emt 0:01:53]} Rxe4 {[%emt 0:00:01]} 28. b3 {[%emt 0:00:19]} Rd8 {
[%emt 0:01:07]} 29. f3 {[%emt 0:03:42]} Red4 {[%emt 0:01:06]} 30. Bb2 {
[%emt 0:01:58]} Rd2 {[%emt 0:00:05]} 31. Bc3 {[%emt 0:00:10]} Rc2 {
[%emt 0:00:14]} 32. Ba5 {[%emt 0:00:06]} Rd7 {[%emt 0:00:27]} 33. c6 {
[%emt 0:00:10]} Rd6 {[%emt 0:00:46]} 34. Bxc7 {[%emt 0:00:12]} Rxc6 {
[%emt 0:00:48]} 35. Bxf4 {[%emt 0:00:10]} Rf6 {[%emt 0:00:07]} 36. Kg3 {
[%emt 0:00:28]} h5 {[%emt 0:00:08]} 37. h4 {[%emt 0:00:09]} 1-0

[Event "OGD Prinsenstad-toernooi - A groep"]
[Site "Delft"]
[Date "2013.03.31"]
[Round "6.8"]
[White "Freeke, Matthieu"]
[Black "Dijkhuis, Tycho"]
[Result "1-0"]
[ECO "D71"]
[WhiteElo "2320"]
[BlackElo "2180"]
[PlyCount "143"]
[EventDate "2013.03.29"]
[EventType "swiss"]
[EventRounds "6"]
[EventCountry "NED"]
[Source "DSC"]
[SourceDate "2013.02.04"]
[TimeControl "6000+10"]

1. d4 Nf6 2. c4 g6 3. g3 Bg7 4. Bg2 d5 5. cxd5 Nxd5 6. Nf3 Nb6 7. O-O Nc6 8.
Nc3 O-O 9. d5 Na5 10. Qc2 c6 11. dxc6 Nxc6 12. Rd1 Bd7 13. Be3 Rc8 14. Qe4 Re8
15. Bh3 Bxh3 16. Rxd8 Rcxd8 17. Qh4 Bc8 18. Bxb6 axb6 19. Kg2 Nd4 20. Rd1 Bf6
21. Qe4 Nxf3 22. exf3 Rxd1 23. Nxd1 Rd8 24. Ne3 Rd4 25. Qc2 Be6 26. b3 h5 27.
h4 Rd7 28. f4 Bd4 29. f5 gxf5 30. Nxf5 Bc5 31. Ne3 Bxe3 32. fxe3 Rd5 33. a4 Kg7
34. Qc7 Bg4 35. e4 Rd2+ 36. Kg1 Rd6 37. Qxe7 Rd3 38. Qg5+ Kh7 39. Qf4 Rf3 40.
Qc7 Be6 41. b4 Bb3 42. Kg2 Rf6 43. Qe5 Rh6 44. Qf5+ Kg7 45. Qg5+ Kh7 46. Qe7
Kg7 47. a5 bxa5 48. bxa5 Ba4 49. Qxb7 Bc6 50. Qb2+ Kh7 51. Qe5 Kg8 52. Qf5 Kg7
53. Qe5+ Kg8 54. Kf3 Kh7 55. Ke3 Kg8 56. Kd4 Kh7 57. a6 Kg8 58. a7 Re6 59. Qg5+
Kf8 60. Qd8+ Kg7 61. e5 Rg6 62. Kc5 Bf3 63. a8=Q Bxa8 64. Qxa8 Rxg3 65. Qd8 Rg6
66. Kd5 Kh7 67. Qf8 Rg7 68. Ke4 Kg6 69. Qd6+ Kh7 70. Qf6 Kg8 71. Kf5 Rg6 72.
Qxg6+ 1-0

[Event "OGD Prinsenstad-toernooi - A groep"]
[Site "Delft"]
[Date "2013.03.31"]
[Round "6.9"]
[White "Von Meijenfeldt, Bart"]
[Black "Senders, Mischa"]
[Result "1-0"]
[ECO "B23"]
[WhiteElo "2195"]
[BlackElo "2208"]
[PlyCount "61"]
[EventDate "2013.03.29"]
[EventType "swiss"]
[EventRounds "6"]
[EventCountry "NED"]
[Source "DSC"]
[SourceDate "2013.02.04"]
[TimeControl "6000+10"]

1. e4 {[%emt 0:03:27]} c5 {[%emt 0:00:00]} 2. Nc3 {[%emt 0:00:05]} d6 {
[%emt 0:00:01]} 3. f4 {[%emt 0:02:02]} g6 {[%emt 0:00:08]} 4. Nf3 {
[%emt 0:00:06]} Bg7 {[%emt 0:00:08]} 5. Bb5+ {[%emt 0:00:03]} Bd7 {
[%emt 0:00:11]} 6. Bc4 {[%emt 0:00:03]} e6 {[%emt 0:02:11]} 7. d4 {
[%emt 0:01:59]} cxd4 {[%emt 0:03:44]} 8. Nxd4 {[%emt 0:01:43]} a6 {
[%emt 0:01:06]} 9. Be3 {[%emt 0:05:07]} Ne7 {[%emt 0:05:25]} 10. Qd2 {
[%emt 0:03:51]} b5 {[%emt 0:04:17]} 11. Bb3 {[%emt 0:00:26]} Nbc6 {
[%emt 0:03:15]} 12. Nxc6 {[%emt 0:05:03]} Bxc6 {[%emt 0:01:36]} 13. Bd4 {
[%emt 0:01:50]} e5 {[%emt 0:03:37]} 14. fxe5 {[%emt 0:01:14]} dxe5 {
[%emt 0:00:27]} 15. Qf2 {[%emt 0:03:25]} O-O {[%emt 0:02:27]} 16. Bc5 {
[%emt 0:01:48]} Qc7 {[%emt 0:11:51]} 17. O-O {[%emt 0:02:07]} Kh8 {
[%emt 0:04:47]} 18. Bxf7 {[%emt 0:22:11]} b4 {[%emt 0:04:31]} 19. Bxb4 {
[%emt 0:17:32]} Rxf7 {[%emt 0:00:40]} 20. Qxf7 {[%emt 0:07:24]} Qb6+ {
[%emt 0:00:04]} 21. Kh1 {[%emt 0:00:04]} Qxb4 {[%emt 0:00:07]} 22. Nd5 {
[%emt 0:00:03]} Nxd5 {[%emt 0:01:44]} 23. exd5 {[%emt 0:01:23]} Bb5 {
[%emt 0:00:27]} 24. Qb7 {[%emt 0:02:04]} Re8 {[%emt 0:05:33]} 25. a4 {
[%emt 0:01:28]} e4 {[%emt 0:00:16]} 26. axb5 {[%emt 0:00:17]} axb5 {
[%emt 0:00:06]} 27. Ra8 {[%emt 0:03:35]} Qe7 {[%emt 0:01:35]} 28. Qxe7 {
[%emt 0:00:08]} Rxa8 {[%emt 0:00:04]} 29. d6 {[%emt 0:00:09]} Rf8 {
[%emt 0:00:13]} 30. Rxf8+ {[%emt 0:00:05]} Bxf8 {[%emt 0:00:04]} 31. Qxf8# 1-0